bitfinex-derivatives/quotes_BTCF0:USTF0_20250609
["timestamp","ask_amount","ask_price","bid_price","bid_amount"]
[1749454654369,1.31388808,105620.0,105610.0,0.52592063]
[1749454657363,1.31388808,105620.0,105610.0,0.62032063]
[1749454657868,0.95308808,105620.0,105610.0,0.62032063]
[1749454658071,1.31388808,105620.0,105610.0,0.62032063]
[1749454659371,0.95308808,105620.0,105610.0,0.62032063]
[1749454659570,1.31388808,105620.0,105610.0,0.62032063]
[1749454670475,1.31388808,105620.0,105610.0,0.50225732]
[1749454676496,0.95308808,105620.0,105610.0,0.50225732]
[1749454676690,1.31388808,105620.0,105610.0,0.50225732]
[1749454679999,1.35013936,105620.0,105610.0,0.6205767]
[1749454680297,1.35013936,105620.0,105610.0,0.47275378]
[1749454680699,1.38153936,105620.0,105610.0,0.47275378]
[1749454681297,1.38153936,105620.0,105610.0,0.44225378]
[1749454681486,1.41283936,105620.0,105610.0,0.44225378]
[1749454681691,1.44473936,105620.0,105610.0,0.44225378]
[1749454682293,1.44473936,105620.0,105610.0,0.41105378]
[1749454683400,0.84915768,105620.0,105610.0,0.52836462]
[1749454683602,0.86751724,105620.0,105610.0,0.92226462]
[1749454683802,0.86751724,105620.0,105610.0,1.10318754]
[1749454684002,0.83561724,105620.0,105610.0,0.98486816]
[1749454684203,0.30697724,105620.0,105610.0,0.98486816]
[1749454684404,0.83561724,105620.0,105610.0,0.98486816]
[1749454686111,0.21659084,105620.0,105610.0,0.98486816]
[1749454686309,0.83557734,105620.0,105610.0,1.08486816]
[1749454686610,0.64631084,105620.0,105610.0,1.08486816]
[1749454686810,0.64631084,105620.0,105610.0,1.18486816]
[1749454687412,0.83557734,105620.0,105610.0,1.18486816]
[1749454687910,0.83557734,105620.0,105610.0,1.08486816]
[1749454688212,0.64631084,105620.0,105610.0,1.08486816]
[1749454689213,0.64631084,105620.0,105610.0,1.18486816]
[1749454690014,0.83557734,105620.0,105610.0,1.08486816]
[1749454690216,0.64631084,105620.0,105610.0,1.18486816]
[1749454691209,0.64631084,105620.0,105610.0,1.27955168]
[1749454691409,0.64591084,105620.0,105610.0,1.27955168]
[1749454691810,0.64631084,105620.0,105610.0,1.27955168]
[1749454695518,0.11771084,105620.0,105610.0,1.27955168]
[1749454695719,0.64631084,105620.0,105610.0,1.27955168]
[1749454695911,0.64631084,105620.0,105610.0,1.57645168]
[1749454696414,0.0004,105620.0,105610.0,1.27955168]
[1749454696609,0.00014228,105630.0,105620.0,0.1892665]
[1749454696814,0.52874228,105630.0,105620.0,1.1272111]
[1749454697212,0.52914228,105630.0,105620.0,1.1272111]
[1749454697418,0.52914228,105630.0,105620.0,1.00990026]
[1749454697618,0.71839088,105630.0,105620.0,1.00990026]
[1749454697813,0.64645312,105630.0,105620.0,0.79258942]
[1749454698015,0.83570172,105630.0,105620.0,0.90990026]
[1749454698418,0.64645312,105630.0,105620.0,1.00990026]
[1749454700318,0.64645312,105630.0,105620.0,1.16093266]
[1749454700730,0.64645312,105630.0,105620.0,1.19880266]
[1749454702518,0.64645312,105630.0,105620.0,0.98149182]
[1749454702823,0.64645312,105630.0,105620.0,1.19880266]
[1749454703023,0.83570172,105630.0,105620.0,1.09880266]
[1749454703227,0.83570172,105630.0,105620.0,0.95097974]
[1749454703920,0.83570172,105630.0,105620.0,0.8336689]
[1749454704119,0.64645312,105630.0,105620.0,0.95097974]
[1749454704427,0.83570172,105630.0,105620.0,0.95097974]
[1749454704727,0.86860172,105630.0,105620.0,0.95097974]
[1749454704923,0.93400172,105630.0,105620.0,0.95097974]
[1749454706028,0.93400172,105630.0,105620.0,0.92087974]
[1749454706524,0.93400172,105630.0,105620.0,0.7389689]
[1749454706830,0.93805832,105630.0,105620.0,0.3781689]
[1749454707930,0.93400172,105630.0,105620.0,0.3781689]
[1749454710625,0.93500172,105630.0,105620.0,0.3781689]
[1749454710825,0.93600172,105630.0,105620.0,0.3781689]
[1749454721541,1.29680172,105630.0,105620.0,0.3781689]
[1749454722133,1.41411256,105630.0,105620.0,0.3781689]
[1749454722840,1.29680172,105630.0,105620.0,0.3781689]
[1749454724342,1.33314198,105630.0,105620.0,0.3781689]
[1749454733554,0.97234198,105630.0,105620.0,0.3781689]
[1749454733754,1.33314198,105630.0,105620.0,0.3781689]
[1749454735543,1.33309758,105630.0,105620.0,0.3781689]
[1749454736256,1.33309758,105630.0,105620.0,0.4103689]
[1749454737958,1.33309758,105630.0,105620.0,0.4403689]
[1749454738458,1.33309758,105630.0,105620.0,0.3222165]
[1749454741860,0.97229758,105630.0,105620.0,0.3222165]
[1749454742059,1.33309758,105630.0,105620.0,0.3222165]
[1749454742859,0.97229758,105630.0,105620.0,0.3222165]
[1749454743064,1.33309758,105630.0,105620.0,0.3222165]
[1749454743453,1.33309758,105630.0,105620.0,0.4403689]
[1749454748858,1.33309758,105630.0,105620.0,0.2511024]
[1749454749164,1.45040842,105630.0,105620.0,0.15947098]
[1749454749366,1.39209135,105630.0,105620.0,0.15947098]
[1749454750261,1.50940219,105630.0,105620.0,0.15947098]
[1749454750461,1.45040842,105630.0,105620.0,0.07075]
[1749454751655,1.45040842,105630.0,105620.0,0.2600166]
[1749454753956,1.45040842,105630.0,105620.0,0.07075]
[1749454754152,1.45040842,105630.0,105620.0,0.2600166]
[1749454755459,1.33309758,105630.0,105620.0,0.2600166]
[1749454755660,1.45040842,105630.0,105620.0,0.2600166]
[1749454758769,1.33309758,105630.0,105620.0,0.2600166]
[1749454759462,1.21578674,105630.0,105620.0,0.2600166]
[1749454759767,1.33309758,105630.0,105620.0,0.2600166]
[1749454760454,1.21578674,105630.0,105620.0,0.2600166]
[1749454760658,1.33309758,105630.0,105620.0,0.2600166]
[1749454761459,1.15030674,105630.0,105620.0,0.2600166]
[1749454761661,1.23471758,105630.0,105620.0,0.44093758]
[1749454764063,1.30051758,105630.0,105620.0,0.44093758]
[1749454764468,1.30051758,105630.0,105620.0,0.41073758]
[1749454764665,1.29462172,105630.0,105620.0,0.46981215]
[1749454764870,1.29462172,105630.0,105620.0,0.28054555]
[1749454765070,1.29462172,105630.0,105620.0,0.45285184]
[1749454765266,1.29462172,105630.0,105620.0,0.42204909]
[1749454765760,1.19842172,105630.0,105620.0,0.42204897]
[1749454765968,1.19802172,105630.0,105620.0,0.51894897]
[1749454766170,1.19842172,105630.0,105620.0,0.50471215]
[1749454766372,1.19842172,105630.0,105620.0,0.51894891]
[1749454766767,1.19842172,105630.0,105620.0,0.50471215]
[1749454766968,1.19842172,105630.0,105620.0,0.51894891]
[1749454767671,1.19842172,105630.0,105620.0,0.50471215]
[1749454767973,1.19842172,105630.0,105620.0,0.51894891]
[1749454768366,1.19842172,105630.0,105620.0,0.50471215]
[1749454768763,1.19842172,105630.0,105620.0,0.51894891]
[1749454768979,1.19842172,105630.0,105620.0,0.50471215]
[1749454775377,0.83762172,105630.0,105620.0,0.50471215]
[1749454775576,1.19842172,105630.0,105620.0,0.50471215]
[1749454778376,0.83762172,105630.0,105620.0,0.44563758]
[1749454778681,1.19842172,105630.0,105620.0,0.44563758]
[1749454779082,1.62782172,105630.0,105620.0,0.44563758]
[1749454779282,1.26702172,105630.0,105620.0,0.44563758]
[1749454779581,1.62782172,105630.0,105620.0,0.44563758]
[1749454779981,1.62782172,105630.0,105620.0,0.51926442]
[1749454780184,1.62782172,105630.0,105620.0,0.50477674]
[1749454780679,1.65902172,105630.0,105620.0,0.50477674]
[1749454780879,1.65902172,105630.0,105620.0,0.51926445]
[1749454781470,1.65902172,105630.0,105620.0,0.46012529]
[1749454781671,1.65902172,105630.0,105620.0,0.46012848]
[1749454782071,1.65902172,105630.0,105620.0,0.46006816]
[1749454782270,1.65902172,105630.0,105620.0,0.5192083]
[1749454782475,1.65902172,105630.0,105620.0,0.46006817]
[1749454783377,1.65902172,105630.0,105620.0,0.44563758]
[1749454783580,1.68912172,105630.0,105620.0,0.46006515]
[1749454783778,1.68912172,105630.0,105620.0,0.44563758]
[1749454783978,1.68912172,105630.0,105620.0,0.46006515]
[1749454784173,1.68912172,105630.0,105620.0,0.44563758]
[1749454784478,1.72052172,105630.0,105620.0,0.44563758]
[1749454784979,1.72052172,105630.0,105620.0,0.46006985]
[1749454785180,1.72052172,105630.0,105620.0,0.46007105]
[1749454785685,1.72052172,105630.0,105620.0,0.42827105]
[1749454786177,1.72052172,105630.0,105620.0,0.41383758]
[1749454786583,1.72052172,105630.0,105620.0,0.42827105]
[1749454786784,1.72052172,105630.0,105620.0,0.41383758]
[1749454787084,1.72052172,105630.0,105620.0,0.42827265]
[1749454787387,1.72052172,105630.0,105620.0,0.41383758]
[1749454788182,1.72052172,105630.0,105620.0,0.42827265]
[1749454788981,1.72052172,105630.0,105620.0,0.41383758]
[1749454789181,1.72052172,105630.0,105620.0,0.42827265]
[1749454789384,1.72052172,105630.0,105620.0,0.42827385]
[1749454789781,1.35972172,105630.0,105620.0,0.41383758]
[1749454789981,1.72052172,105630.0,105620.0,0.42827385]
[1749454790484,1.72052172,105630.0,105620.0,0.42827359]
[1749454790886,1.35972172,105630.0,105620.0,0.41383758]
[1749454791085,1.35972172,105630.0,105620.0,0.42827359]
[1749454791286,1.72052172,105630.0,105620.0,0.41383758]
[1749454791876,1.72052172,105630.0,105620.0,0.42827359]
[1749454792086,1.72052172,105630.0,105620.0,0.41383758]
[1749454792587,1.72052172,105630.0,105620.0,0.42827359]
[1749454792781,1.72052172,105630.0,105620.0,0.41383758]
[1749454792986,1.72052172,105630.0,105620.0,0.42827359]
[1749454793182,1.72052172,105630.0,105620.0,0.41383758]
[1749454793888,1.72052172,105630.0,105620.0,0.42827359]
[1749454794290,1.72052172,105630.0,105620.0,0.41383758]
[1749454794490,1.72052172,105630.0,105620.0,0.42827359]
[1749454795390,1.72052172,105630.0,105620.0,0.42827377]
[1749454796291,1.72052172,105630.0,105620.0,0.41383758]
[1749454796491,1.72052172,105630.0,105620.0,0.42827377]
[1749454796989,1.35972172,105630.0,105620.0,0.42827368]
[1749454797179,1.72052172,105630.0,105620.0,0.41383758]
[1749454797383,1.72052172,105630.0,105620.0,0.42827368]
[1749454797890,1.72052172,105630.0,105620.0,0.38103758]
[1749454798091,1.72052172,105630.0,105620.0,0.39547368]
[1749454798289,1.72052172,105630.0,105620.0,0.38103758]
[1749454798494,1.72052172,105630.0,105620.0,0.39547368]
[1749454798693,1.72052172,105630.0,105620.0,0.38103758]
[1749454798888,1.72052172,105630.0,105620.0,0.39547368]
[1749454799089,1.35972172,105630.0,105620.0,0.39547306]
[1749454799291,1.72052172,105630.0,105620.0,0.38103758]
[1749454799995,1.35972172,105630.0,105620.0,0.38103758]
[1749454800197,1.72052172,105630.0,105620.0,0.39547306]
[1749454800796,1.72052172,105630.0,105620.0,0.38103758]
[1749454801797,1.72052172,105630.0,105620.0,0.39547323]
[1749454801999,1.35972172,105630.0,105620.0,0.39547323]
[1749454802194,1.72052172,105630.0,105620.0,0.39547314]
[1749454802395,1.35972172,105630.0,105620.0,0.39547314]
[1749454802695,1.72052172,105630.0,105620.0,0.39547314]
[1749454802993,1.72052172,105630.0,105620.0,0.38103758]
[1749454803194,1.72052172,105630.0,105620.0,0.39547314]
[1749454803399,1.72052172,105630.0,105620.0,0.38103758]
[1749454803703,1.72052172,105630.0,105620.0,0.39547314]
[1749454804195,1.72052172,105630.0,105620.0,0.38103758]
[1749454804397,1.72052172,105630.0,105620.0,0.39547314]
[1749454804597,1.72052172,105630.0,105620.0,0.39547305]
[1749454804898,1.72052172,105630.0,105620.0,0.38103758]
[1749454805199,1.60321088,105630.0,105620.0,0.39547305]
[1749454805394,1.72052172,105630.0,105620.0,0.39547305]
[1749454806194,1.72052172,105630.0,105620.0,0.38103758]
[1749454807096,1.72052172,105630.0,105620.0,0.39547704]
[1749454807401,1.35972172,105630.0,105620.0,0.38103758]
[1749454807700,1.72052172,105630.0,105620.0,0.38103758]
[1749454808005,1.72052172,105630.0,105620.0,0.39547704]
[1749454808202,1.72052172,105630.0,105620.0,0.39547713]
[1749454809203,1.72052172,105630.0,105620.0,0.38103758]
[1749454809508,1.72052172,105630.0,105620.0,0.39547669]
[1749454809901,1.72052172,105630.0,105620.0,0.38103758]
[1749454810205,1.72052172,105630.0,105620.0,0.39547669]
[1749454810393,1.72052172,105630.0,105620.0,0.38103758]
[1749454810594,1.72052172,105630.0,105620.0,0.39547687]
[1749454811309,1.72052172,105630.0,105620.0,0.38103758]
[1749454811713,1.72052172,105630.0,105620.0,0.3954768]
[1749454812206,1.72052172,105630.0,105620.0,0.38103758]
[1749454813218,1.72052172,105630.0,105620.0,0.39547662]
[1749454813717,1.35972172,105630.0,105620.0,0.39547662]
[1749454813917,1.72052172,105630.0,105620.0,0.39547662]
[1749454814120,1.72052172,105630.0,105620.0,0.38103758]
[1749454814512,1.72052172,105630.0,105620.0,0.3954982]
[1749454815018,1.72052172,105630.0,105620.0,0.38103758]
[1749454815620,1.72052172,105630.0,105620.0,0.45465704]
[1749454815920,1.77951549,105630.0,105620.0,0.45465729]
[1749454816214,1.77951549,105630.0,105620.0,0.44019642]
[1749454816411,1.77951549,105630.0,105620.0,0.45465728]
[1749454816612,1.77951549,105630.0,105620.0,0.4546587]
[1749454816915,1.77951549,105630.0,105620.0,0.45465871]
[1749454817315,1.72052172,105630.0,105620.0,0.45465871]
[1749454817517,1.72052172,105630.0,105620.0,0.44019642]
[1749454817715,1.72052172,105630.0,105620.0,0.45465871]
[1749454817917,1.72052172,105630.0,105620.0,0.21862982]
[1749454818212,1.77951549,105630.0,105620.0,0.21862982]
[1749454818417,1.89682633,105630.0,105620.0,0.23309221]
[1749454818609,1.77951549,105630.0,105620.0,0.23309233]
[1749454818919,1.77951549,105630.0,105620.0,0.21862982]
[1749454819218,1.77951549,105630.0,105620.0,0.23309257]
[1749454819819,1.77951549,105630.0,105620.0,0.23309848]
[1749454820021,1.77951549,105630.0,105620.0,0.23309892]
[1749454820917,1.77951549,105630.0,105620.0,0.21862982]
[1749454821615,1.77951549,105630.0,105620.0,0.23309892]
[1749454822017,1.77951549,105630.0,105620.0,0.21862982]
[1749454822410,1.77951549,105630.0,105620.0,0.23309875]
[1749454822608,1.77951549,105630.0,105620.0,0.21862982]
[1749454822812,1.77951549,105630.0,105620.0,0.23309875]
[1749454823121,1.77951549,105630.0,105620.0,0.21862982]
[1749454824215,1.77951549,105630.0,105620.0,0.23309875]
[1749454824414,1.41871549,105630.0,105620.0,0.21862982]
[1749454824617,2.14031549,105630.0,105620.0,0.21862982]
[1749454824810,2.14031549,105630.0,105620.0,0.23310354]
[1749454825220,2.14031549,105630.0,105620.0,0.23310443]
[1749454825823,2.14031549,105630.0,105620.0,0.21862982]
[1749454826021,2.14031549,105630.0,105620.0,0.23310443]
[1749454826220,2.14031549,105630.0,105620.0,0.21862982]
[1749454826422,2.14031549,105630.0,105620.0,0.23310443]
[1749454826618,2.14031549,105630.0,105620.0,0.21862982]
[1749454826817,2.14031549,105630.0,105620.0,0.14438345]
[1749454827117,2.14031549,105630.0,105620.0,0.12990884]
[1749454827317,2.14031549,105630.0,105620.0,0.14438345]
[1749454828022,2.25762633,105630.0,105620.0,0.14438487]
[1749454828414,2.37493717,105630.0,105620.0,0.14438489]
[1749454828616,0.1892666,105620.0,105610.0,0.08872098]
[1749454828821,1.03330906,105620.0,105610.0,0.08872098]
[1749454829017,1.09230283,105620.0,105610.0,0.08872098]
[1749454829325,0.1892845,105610.0,105600.0,0.29917338]
[1749454829524,1.23200528,105610.0,105600.0,0.48847578]
[1749454829720,1.24920969,105610.0,105600.0,0.18102098]
[1749454829924,1.31260969,105610.0,105600.0,0.37032338]
[1749454830118,1.34420969,105610.0,105600.0,0.37032338]
[1749454830523,1.34420969,105610.0,105600.0,0.37132338]
[1749454830723,1.34420969,105610.0,105600.0,0.37232338]
[1749454830926,1.34420969,105610.0,105600.0,0.18202098]
[1749454831126,1.34620969,105610.0,105600.0,0.18202098]
[1749454832432,1.34820969,105610.0,105600.0,0.37032338]
[1749454832632,1.34820969,105610.0,105600.0,0.18102098]
[1749454836641,1.34820969,105610.0,105600.0,0.14992098]
[1749454836840,1.46552053,105610.0,105600.0,0.08872098]
[1749454837037,0.1893025,105600.0,105590.0,0.34068366]
[1749454837242,0.81502418,105600.0,105590.0,0.34068366]
[1749454837433,0.91478799,105600.0,105590.0,0.34068366]
[1749454837839,0.79747715,105600.0,105590.0,0.34068366]
[1749454838340,0.76141334,105600.0,105590.0,0.34068366]
[1749454839242,0.76341334,105600.0,105590.0,0.34068366]
[1749454840343,0.69971334,105600.0,105590.0,0.34068366]
[1749454840538,1.19777334,105600.0,105590.0,0.37308366]
[1749454841138,1.19777334,105600.0,105590.0,0.38768475]
[1749454841539,1.19777334,105600.0,105590.0,0.37308366]
[1749454841843,1.20700628,105600.0,105590.0,0.38768475]
[1749454842345,1.20700628,105600.0,105590.0,0.37308366]
[1749454842529,1.20700628,105600.0,105590.0,0.38768475]
[1749454842730,1.20700628,105600.0,105590.0,0.37308366]
[1749454842932,1.20700628,105600.0,105590.0,0.38768475]
[1749454843345,0.84620628,105600.0,105590.0,0.38768475]
[1749454843534,1.20700628,105600.0,105590.0,0.38768474]
[1749454843944,1.20700628,105600.0,105590.0,0.37308366]
[1749454844536,1.20700628,105600.0,105590.0,0.38768475]
[1749454844837,1.20700628,105600.0,105590.0,0.37308366]
[1749454845239,0.56133544,105600.0,105590.0,0.37308366]
[1749454845545,1.20740628,105600.0,105590.0,0.4903945]
[1749454845943,1.20700628,105600.0,105590.0,0.5050384]
[1749454846143,1.20740628,105600.0,105590.0,0.50503839]
[1749454846744,1.20740628,105600.0,105590.0,0.4903945]
[1749454846941,1.20700628,105600.0,105590.0,0.4903945]
[1749454847147,1.19817334,105600.0,105590.0,0.4903945]
[1749454847647,1.19817334,105600.0,105590.0,0.50504035]
[1749454847847,1.19817334,105600.0,105590.0,0.3877295]
[1749454848150,1.20773297,105600.0,105590.0,0.38772951]
[1749454848547,1.20773297,105600.0,105590.0,0.37308366]
[1749454848750,1.20773297,105600.0,105590.0,0.38772951]
[1749454848946,1.20773297,105600.0,105590.0,0.37308366]
[1749454849145,1.20773297,105600.0,105590.0,0.38772942]
[1749454849346,1.20773297,105600.0,105590.0,0.37308366]
[1749454849546,1.20773297,105600.0,105590.0,0.38772942]
[1749454850249,1.20773297,105600.0,105590.0,0.38769343]
[1749454850752,1.20773297,105600.0,105590.0,0.40229903]
[1749454850945,1.20773297,105600.0,105590.0,0.38769343]
[1749454851143,1.20773297,105600.0,105590.0,0.40229903]
[1749454851551,1.19817334,105600.0,105590.0,0.40229903]
[1749454851745,1.19817334,105600.0,105590.0,0.40229902]
[1749454852147,1.20757824,105600.0,105590.0,0.38769343]
[1749454852551,1.20757824,105600.0,105590.0,0.40229743]
[1749454853453,1.20757824,105600.0,105590.0,0.38769343]
[1749454853752,1.20757824,105600.0,105590.0,0.40229743]
[1749454854150,1.0902674,105600.0,105590.0,0.40229743]
[1749454854357,1.20757824,105600.0,105590.0,0.40229743]
[1749454854552,1.20757824,105600.0,105590.0,0.40231902]
[1749454854852,1.20757824,105600.0,105590.0,0.38769343]
[1749454855047,1.20757824,105600.0,105590.0,0.40231903]
[1749454855254,1.20757824,105600.0,105590.0,0.38769343]
[1749454855455,1.20757824,105600.0,105590.0,0.40231903]
[1749454855752,1.20757824,105600.0,105590.0,0.38769343]
[1749454855956,1.20757824,105600.0,105590.0,0.40231904]
[1749454856155,1.20757824,105600.0,105590.0,0.38769343]
[1749454856355,1.20757824,105600.0,105590.0,0.40231904]
[1749454856552,1.20757824,105600.0,105590.0,0.4023193]
[1749454857250,1.20757824,105600.0,105590.0,0.50584583]
[1749454858359,1.20757824,105600.0,105590.0,0.52047171]
[1749454858554,1.20757824,105600.0,105590.0,0.50584583]
[1749454858755,1.20757824,105600.0,105590.0,0.52047171]
[1749454859057,1.20757824,105600.0,105590.0,0.41712485]
[1749454859355,1.20757824,105600.0,105590.0,0.43175073]
[1749454859553,1.20757824,105600.0,105590.0,0.41712485]
[1749454859959,1.20757824,105600.0,105590.0,0.43175072]
[1749454860161,1.20757824,105600.0,105590.0,0.41712485]
[1749454860553,1.20757824,105600.0,105590.0,0.53443569]
[1749454860754,1.24357424,105600.0,105590.0,0.63773522]
[1749454860954,1.24357424,105600.0,105590.0,0.62310379]
[1749454861156,1.24357424,105600.0,105590.0,0.62310761]
[1749454861361,1.24357424,105600.0,105590.0,0.50579677]
[1749454861561,1.24357424,105600.0,105590.0,0.52042822]
[1749454862163,1.24357424,105600.0,105590.0,0.4317563]
[1749454862362,1.24357424,105600.0,105590.0,0.43175648]
[1749454863960,1.24357424,105600.0,105590.0,0.41712485]
[1749454864159,1.24357424,105600.0,105590.0,0.43175648]
[1749454864355,1.24357424,105600.0,105590.0,0.41712485]
[1749454864961,0.88277424,105600.0,105590.0,0.41712485]
[1749454865160,1.24357424,105600.0,105590.0,0.41712485]
[1749454865463,1.24357424,105600.0,105590.0,0.43176008]
[1749454865661,1.24357424,105600.0,105590.0,0.41712485]
[1749454865964,1.24357424,105600.0,105590.0,0.4317591]
[1749454866153,1.24357424,105600.0,105590.0,0.41712485]
[1749454866360,1.24357424,105600.0,105590.0,0.4317591]
[1749454866560,1.24357424,105600.0,105590.0,0.41712485]
[1749454867562,1.24357424,105600.0,105590.0,0.4317591]
[1749454868065,1.24357424,105600.0,105590.0,0.41712485]
[1749454868266,1.30777424,105600.0,105590.0,0.4317591]
[1749454868467,1.30777424,105600.0,105590.0,0.41712485]
[1749454868768,1.30777424,105600.0,105590.0,0.53443569]
[1749454869068,1.30777424,105600.0,105590.0,0.54906994]
[1749454869266,1.27647424,105600.0,105590.0,0.53443569]
[1749454869468,1.27647424,105600.0,105590.0,0.54906994]
[1749454869765,1.27647424,105600.0,105590.0,0.53443569]
[1749454869960,1.27647424,105600.0,105590.0,0.54907043]
[1749454870165,0.7560185,105600.0,105590.0,0.54907043]
[1749454870366,0.3264585,105600.0,105590.0,0.99523569]
[1749454870567,0.7196225,105600.0,105590.0,0.99523569]
[1749454870769,0.7200225,105600.0,105590.0,1.00986998]
[1749454871068,0.7196225,105600.0,105590.0,1.00986998]
[1749454871271,0.7200225,105600.0,105590.0,1.00986998]
[1749454871571,0.83733334,105600.0,105590.0,0.99523569]
[1749454872367,0.83733334,105600.0,105590.0,1.00986973]
[1749454872770,0.83733334,105600.0,105590.0,0.99523569]
[1749454873070,0.83733334,105600.0,105590.0,1.09523569]
[1749454873266,0.83733334,105600.0,105590.0,1.10986968]
[1749454873466,0.83733334,105600.0,105590.0,1.10986967]
[1749454873666,0.83733334,105600.0,105590.0,1.09523569]
[1749454874269,0.83733334,105600.0,105590.0,1.10979649]
[1749454874460,0.83733334,105600.0,105590.0,1.09523569]
[1749454875158,0.83733334,105600.0,105590.0,0.99523569]
[1749454876168,0.83733334,105600.0,105590.0,1.00978637]
[1749454876572,0.83729334,105600.0,105590.0,0.99523569]
[1749454876768,0.83729334,105600.0,105590.0,1.00978637]
[1749454877270,0.83729334,105600.0,105590.0,0.99523569]
[1749454877964,0.83729334,105600.0,105590.0,0.64898628]
[1749454878268,0.83729334,105600.0,105590.0,0.90978628]
[1749454878470,0.83729334,105600.0,105590.0,0.89523569]
[1749454878962,0.83729334,105600.0,105590.0,0.54898626]
[1749454879158,0.83729334,105600.0,105590.0,0.90978626]
[1749454879358,0.83729334,105600.0,105590.0,0.89523569]
[1749454879760,0.87323536,105600.0,105590.0,0.90979194]
[1749454879961,0.87323536,105600.0,105590.0,0.53443569]
[1749454880158,0.87323536,105600.0,105590.0,0.99523569]
[1749454880362,0.87323514,105600.0,105590.0,0.99523569]
[1749454880764,0.87323514,105600.0,105590.0,1.00974516]
[1749454881359,1.35134598,105600.0,105590.0,0.32262485]
[1749454881565,1.44424598,105600.0,105590.0,0.33712902]
[1749454881967,1.44424598,105600.0,105590.0,0.32262485]
[1749454881968,1.08344598,105600.0,105590.0,0.32262485]
[1749454882165,1.44424598,105600.0,105590.0,0.32262485]
[1749454882767,1.08344598,105600.0,105590.0,0.32262485]
[1749454882963,1.44424598,105600.0,105590.0,0.33712917]
[1749454883169,1.44424598,105600.0,105590.0,0.32262485]
[1749454883370,1.44424598,105600.0,105590.0,0.33712925]
[1749454883569,1.08344598,105600.0,105590.0,0.33712925]
[1749454883770,1.44424598,105600.0,105590.0,0.33712922]
[1749454883974,1.44424598,105600.0,105590.0,0.33712924]
[1749454884174,1.44424598,105600.0,105590.0,0.33715442]
[1749454884475,1.44424598,105600.0,105590.0,0.32262485]
[1749454884665,1.44424598,105600.0,105590.0,0.33715442]
[1749454884868,1.44424598,105600.0,105590.0,0.32262485]
[1749454885571,1.08344598,105600.0,105590.0,0.32262485]
[1749454885768,1.44424598,105600.0,105590.0,0.32262485]
[1749454885973,1.44424598,105600.0,105590.0,0.33715637]
[1749454886374,1.44424598,105600.0,105590.0,0.39995638]
[1749454886671,1.44424598,105600.0,105590.0,0.38542485]
[1749454887379,1.44424598,105600.0,105590.0,0.39995638]
[1749454887575,1.08344598,105600.0,105590.0,0.38542485]
[1749454887777,1.44424598,105600.0,105590.0,0.38542485]
[1749454888373,1.44424598,105600.0,105590.0,0.39995638]
[1749454888570,1.44424598,105600.0,105590.0,0.38542485]
[1749454889272,1.44424598,105600.0,105590.0,0.39995638]
[1749454889473,1.08344598,105600.0,105590.0,0.38542485]
[1749454889674,1.44424598,105600.0,105590.0,0.38542485]
[1749454889885,1.44424598,105600.0,105590.0,0.39997797]
[1749454890069,1.44424598,105600.0,105590.0,0.33717797]
[1749454890382,1.44424598,105600.0,105590.0,0.32262485]
[1749454891378,1.08344598,105600.0,105590.0,0.32262485]
[1749454891584,1.08344598,105600.0,105590.0,0.33718154]
[1749454891774,1.08344598,105600.0,105590.0,0.32262485]
[1749454892386,1.08344598,105600.0,105590.0,0.33718154]
[1749454892878,1.08344598,105600.0,105590.0,0.32262485]
[1749454893080,1.08344598,105600.0,105590.0,0.33718154]
[1749454893382,1.08344598,105600.0,105590.0,0.32262485]
[1749454893680,1.08344598,105600.0,105590.0,0.33718155]
[1749454894483,1.08344598,105600.0,105590.0,0.32262485]
[1749454894682,1.08344598,105600.0,105590.0,0.33715636]
[1749454894883,1.08344598,105600.0,105590.0,0.43993569]
[1749454895390,1.08344598,105600.0,105590.0,0.4544672]
[1749454895686,1.08344598,105600.0,105590.0,0.43993569]
[1749454895879,1.08344598,105600.0,105590.0,0.33715637]
[1749454896079,1.08344598,105600.0,105590.0,0.32262485]
[1749454896281,1.08344598,105600.0,105590.0,0.33715734]
[1749454896480,1.08344598,105600.0,105590.0,0.32262485]
[1749454896684,1.08344598,105600.0,105590.0,0.33715734]
[1749454896881,1.08344598,105600.0,105590.0,0.32262485]
[1749454897084,1.08344598,105600.0,105590.0,0.33715734]
[1749454897478,1.08344598,105600.0,105590.0,0.32262485]
[1749454898084,1.08344598,105600.0,105590.0,0.33715735]
[1749454898280,1.08344598,105600.0,105590.0,0.32262485]
[1749454898681,1.08344598,105600.0,105590.0,0.33715734]
[1749454899084,1.08344598,105600.0,105590.0,0.32262485]
[1749454899983,1.08344598,105600.0,105590.0,0.33713935]
[1749454900183,1.08344598,105600.0,105590.0,0.32262485]
[1749454900377,0.96609514,105600.0,105590.0,0.43993569]
[1749454900589,1.08340598,105600.0,105590.0,0.45444922]
[1749454900773,1.08340598,105600.0,105590.0,0.43993569]
[1749454901282,1.08340598,105600.0,105590.0,0.45444921]
[1749454901489,1.08340598,105600.0,105590.0,0.43993569]
[1749454901878,1.08340598,105600.0,105590.0,0.45444921]
[1749454902482,1.08340598,105600.0,105590.0,0.43993569]
[1749454902684,1.08340598,105600.0,105590.0,0.45444921]
[1749454902990,1.08340598,105600.0,105590.0,0.45466202]
[1749454904994,1.08340598,105600.0,105590.0,0.45467882]
[1749454905190,1.08340598,105600.0,105590.0,0.43993569]
[1749454905490,1.08340598,105600.0,105590.0,0.45467882]
[1749454905993,1.08340598,105600.0,105590.0,0.45447882]
[1749454906194,1.08340598,105600.0,105590.0,0.43993569]
[1749454906389,1.08340598,105600.0,105590.0,0.45447882]
[1749454906590,1.08340598,105600.0,105590.0,0.43993569]
[1749454906790,0.96609514,105600.0,105590.0,0.45447882]
[1749454907289,0.96609514,105600.0,105590.0,0.48727882]
[1749454907688,0.96609514,105600.0,105590.0,0.48726941]
[1749454907888,0.96609514,105600.0,105590.0,0.51906941]
[1749454908495,0.96609514,105600.0,105590.0,0.50453569]
[1749454908891,0.96609514,105600.0,105590.0,0.51906941]
[1749454909495,0.96609514,105600.0,105590.0,0.50453569]
[1749454909796,0.96609514,105600.0,105590.0,0.51906792]
[1749454909990,0.96609514,105600.0,105590.0,0.50453569]
[1749454910197,0.96609514,105600.0,105590.0,0.51906807]
[1749454910400,0.96609514,105600.0,105590.0,0.50453569]
[1749454910590,0.96609514,105600.0,105590.0,0.40175723]
[1749454911297,1.08340598,105600.0,105590.0,0.38722485]
[1749454912402,0.96609514,105600.0,105590.0,0.40175695]
[1749454912603,0.96609514,105600.0,105590.0,0.38722485]
[1749454912803,0.96609514,105600.0,105590.0,0.40175701]
[1749454913106,0.96609514,105600.0,105590.0,0.38722485]
[1749454913305,1.08340598,105600.0,105590.0,0.38722485]
[1749454913705,1.08340598,105600.0,105590.0,0.40176171]
[1749454913905,1.08340598,105600.0,105590.0,0.40176172]
[1749454914103,1.08340598,105600.0,105590.0,0.38722485]
[1749454914502,1.08340598,105600.0,105590.0,0.40175996]
[1749454914808,1.08340598,105600.0,105590.0,0.38722485]
[1749454915010,1.08340598,105600.0,105590.0,0.40175996]
[1749454915206,1.08340598,105600.0,105590.0,0.40175997]
[1749454915804,1.08340598,105600.0,105590.0,0.38722485]
[1749454916407,1.08340598,105600.0,105590.0,0.40176038]
[1749454916606,1.08340598,105600.0,105590.0,0.38722485]